bitfinex-derivatives/quotes_BTCF0:USTF0_20260106
["timestamp","ask_amount","ask_price","bid_price","bid_amount"]
[1767705623658,0.09064,93835.0,93823.0,0.09535783]
[1767705623957,0.1013,93835.0,93823.0,0.09535783]
[1767705625261,0.01066,93833.0,93823.0,0.09535783]
[1767705627161,0.010661,93831.0,93823.0,0.09535783]
[1767705628252,0.010661,93829.0,93823.0,0.09535783]
[1767705628453,0.09827576,93833.0,93820.0,0.00313643]
[1767705628757,0.010662,93823.0,93812.0,0.1882238]
[1767705629552,0.010662,93823.0,93813.0,0.00207961]
[1767705629754,0.09827576,93830.0,93813.0,0.00207961]
[1767705629755,0.010661,93825.0,93813.0,0.00207961]
[1767705630152,0.010661,93825.0,93813.0,0.09743744]
[1767705630961,0.010661,93828.0,93814.0,0.09729282]
[1767705631462,0.010661,93828.0,93815.0,0.09545372]
[1767705631662,0.010661,93828.0,93816.0,0.00219261]
[1767705632368,0.010662,93821.0,93809.0,0.09366288]
[1767705632559,0.010662,93822.0,93810.0,0.09064]
[1767705633270,0.010661,93827.0,93810.0,0.18635049]
[1767705633762,0.010661,93827.0,93810.0,0.19701349]
[1767705633965,0.010661,93827.0,93811.0,0.00224074]
[1767705634462,0.010661,93827.0,93811.0,0.09590362]
[1767705636064,0.010661,93826.0,93811.0,0.09590362]
[1767705636661,0.09827576,93830.0,93812.0,0.010663]
[1767705636966,0.09827576,93830.0,93815.0,0.09546842]
[1767705637155,0.010661,93829.0,93815.0,0.09546842]
[1767705637454,0.010661,93829.0,93815.0,0.09366288]
[1767705637867,0.09827576,93830.0,93815.0,0.09366288]
[1767705639164,0.10893676,93830.0,93815.0,0.09366288]
[1767705639671,0.09827576,93830.0,93816.0,0.010662]
[1767705639868,0.09827576,93830.0,93816.0,0.10568659]
[1767705640067,0.010661,93833.0,93816.0,0.10568659]
[1767705640068,0.010661,93833.0,93818.0,0.010662]
[1767705640260,0.09064,93835.0,93821.0,0.00136171]
[1767705642567,0.09064,93835.0,93822.0,0.010662]
[1767705642768,0.09064,93835.0,93821.0,0.01202371]
[1767705642967,0.09064,93837.0,93822.0,0.01138036]
[1767705643170,0.1013,93837.0,93822.0,0.01138036]
[1767705643361,0.09064,93837.0,93822.0,0.00071836]
[1767705643668,0.09064,93837.0,93820.0,0.09366288]
[1767705644169,0.01066,93835.0,93820.0,0.09366288]
[1767705645266,0.09064,93837.0,93821.0,0.01108487]
[1767705646176,0.09064,93837.0,93821.0,0.010662]
[1767705646474,0.1013,93837.0,93821.0,0.010662]
[1767705647470,0.1013,93837.0,93820.0,0.09366288]
[1767705647471,0.01066,93835.0,93820.0,0.09366288]
[1767705647874,0.01066,93835.0,93820.0,0.10432488]
[1767705648065,0.1013,93837.0,93820.0,0.10432488]
[1767705648773,0.1013,93837.0,93822.0,0.010662]
[1767705651974,0.1013,93837.0,93820.0,0.09366288]
[1767705652376,0.1013,93837.0,93821.0,0.010662]
[1767705654177,0.00213132,93839.0,93820.0,0.19193864]
[1767705654478,0.00213132,93839.0,93826.0,0.010661]
[1767705654680,0.00213132,93839.0,93822.0,0.09366288]
[1767705655067,0.00213132,93839.0,93828.0,0.010661]
[1767705655762,0.00213132,93839.0,93826.0,0.010661]
[1767705655969,0.00213132,93839.0,93822.0,0.09366288]
[1767705655970,0.00213132,93839.0,93824.0,0.09366288]
[1767705657168,0.00213132,93839.0,93827.0,0.010661]
[1767705657873,0.01066,93835.0,93823.0,0.09064]
[1767705658081,0.010661,93832.0,93823.0,0.09064]
[1767705658472,0.010661,93829.0,93820.0,0.09064]
[1767705659075,0.010661,93832.0,93820.0,0.09064]
[1767705662283,0.01066,93834.0,93820.0,0.09064]
[1767705665979,0.01277938,93837.0,93820.0,0.09064]
[1767705666185,0.010661,93829.0,93820.0,0.09064]
[1767705667082,0.010661,93829.0,93816.0,0.05886789]
[1767705667272,0.010662,93822.0,93812.0,0.09064]
[1767705667470,0.010662,93822.0,93807.0,0.13413449]
[1767705667676,0.10481559,93823.0,93809.0,0.15974152]
[1767705667871,0.010662,93819.0,93807.0,0.09064]
[1767705672085,0.01277938,93822.0,93807.0,0.09064]
[1767705672286,0.01277938,93821.0,93807.0,0.09064]
[1767705673084,0.010662,93820.0,93807.0,0.09064]
[1767705673291,0.01277938,93821.0,93807.0,0.09064]
[1767705673485,0.010662,93816.0,93805.0,0.08357728]
[1767705674292,0.010662,93819.0,93805.0,0.1820208]
[1767705674491,0.010662,93819.0,93806.0,0.09844352]
[1767705675789,0.010662,93822.0,93806.0,0.09844352]
[1767705675990,0.10481559,93827.0,93806.0,0.09844352]
[1767705676193,0.010662,93819.0,93806.0,0.09844352]
[1767705676491,0.01277938,93826.0,93806.0,0.09844352]
[1767705676893,0.010663,93815.0,93806.0,0.09844352]
[1767705677696,0.010663,93813.0,93806.0,0.09844352]
[1767705677996,0.01277938,93823.0,93806.0,0.09844352]
[1767705678197,0.010662,93822.0,93806.0,0.09844352]
[1767705679197,0.01277938,93823.0,93806.0,0.09844352]
[1767705679496,0.01277938,93826.0,93806.0,0.09844352]
[1767705680083,0.010662,93818.0,93806.0,0.09844352]
[1767705680700,0.010662,93817.0,93806.0,0.09844352]
[1767705684303,0.11547659,93827.0,93806.0,0.09844352]
[1767705684304,0.010663,93815.0,93806.0,0.09844352]
[1767705684597,0.010662,93824.0,93806.0,0.09844352]
[1767705684796,0.010662,93818.0,93805.0,2.8e-07]
[1767705684995,0.010662,93818.0,93802.0,0.09064]
[1767705685202,0.010663,93810.0,93802.0,0.09064]
[1767705685391,0.01277938,93821.0,93802.0,0.09064]
[1767705685592,0.010663,93812.0,93802.0,0.18908352]
[1767705685898,0.01277938,93821.0,93802.0,0.27640828]
[1767705686094,0.010663,93815.0,93803.0,0.09844352]
[1767705687415,0.010663,93813.0,93803.0,0.09844352]
[1767705688204,0.01277938,93824.0,93803.0,0.09844352]
[1767705688406,0.01277938,93824.0,93805.0,0.09844352]
[1767705688602,0.01277938,93842.0,93814.0,0.09844352]
[1767705688905,0.09064,93837.0,93816.0,0.09844352]
[1767705689299,0.09064,93837.0,93812.0,0.09064]
[1767705689300,0.09064,93837.0,93821.0,0.09844352]
[1767705690097,0.09064,93837.0,93823.0,0.09844352]
[1767705690307,0.09064,93837.0,93825.0,0.09844352]
[1767705690495,0.09064,93837.0,93826.0,0.00319504]
[1767705690697,0.1013,93837.0,93826.0,0.00319504]
[1767705691404,0.01066,93837.0,93826.0,0.00319504]
[1767705692606,0.00213132,93839.0,93826.0,0.00319504]
[1767705693110,0.00213132,93839.0,93828.0,0.00309906]
[1767705693608,0.09064,93844.0,93832.0,0.00089239]
[1767705695316,0.09064,93844.0,93831.0,0.09357328]
[1767705695609,0.010658,93852.0,93836.0,0.00082659]
[1767705695801,0.010658,93852.0,93835.0,0.10423328]
[1767705695995,0.09817196,93858.0,93840.0,0.00035621]
[1767705696200,0.09064,93859.0,93843.0,0.010659]
[1767705696604,0.09064,93859.0,93845.0,0.010659]
[1767705696808,0.09064,93859.0,93845.0,0.0112762]
[1767705697009,0.09064,93859.0,93845.0,0.0006172]
[1767705697395,0.09064,93859.0,93842.0,0.010659]
[1767705702807,0.09064,93859.0,93844.0,0.010659]
[1767705703208,0.09064,93859.0,93841.0,0.10484948]
[1767705703616,0.09064,93859.0,93843.0,0.010659]
[1767705704009,0.09064,93859.0,93845.0,0.010659]
[1767705704913,0.09064,93859.0,93849.0,0.010659]
[1767705705509,0.09817196,93869.0,93836.0,0.0854768]
[1767705705510,0.09064,93867.0,93845.0,0.09357328]
[1767705705808,0.09064,93867.0,93853.0,0.010658]
[1767705706614,0.010655,93883.0,93853.0,0.010658]
[1767705706615,0.010656,93876.0,93853.0,0.09357328]
[1767705706818,0.010656,93876.0,93857.0,0.010658]
[1767705707215,0.02324591,93879.0,93859.0,0.010657]
[1767705707417,0.09064,93880.0,93857.0,0.09357328]
[1767705707608,0.010655,93882.0,93862.0,0.09357328]
[1767705707814,0.010655,93882.0,93862.0,0.10423028]
[1767705708121,0.11076287,93884.0,93862.0,0.09357328]
[1767705708313,0.11076287,93882.0,93862.0,0.09357328]
[1767705708715,0.010654,93891.0,93875.0,0.10482538]
[1767705709310,0.101293,93895.0,93879.0,0.0112521]
[1767705709720,0.010653,93895.0,93879.0,0.0112521]
[1767705709941,0.00212996,93899.0,93879.0,0.10482538]
[1767705710622,0.01472087,93899.0,93879.0,0.10482538]
[1767705711005,0.010654,93893.0,93879.0,0.10482538]
[1767705712019,0.010653,93896.0,93879.0,0.10482538]
[1767705712224,0.010654,93894.0,93879.0,0.10482538]
[1767705713431,0.00212996,93899.0,93886.0,0.01355187]
[1767705713723,0.010653,93898.0,93886.0,0.01355187]
[1767705713922,0.010654,93893.0,93883.0,0.0906]
[1767705714225,0.01472087,93899.0,93881.0,0.0906]
[1767705714226,0.010654,93886.0,93881.0,0.0906]
[1767705714414,0.010655,93884.0,93881.0,0.0906]
[1767705714613,0.01259091,93893.0,93881.0,0.0906]
[1767705714918,0.01259091,93892.0,93881.0,0.0906]
[1767705715313,0.010655,93885.0,93881.0,0.0906]
[1767705715521,0.01259091,93892.0,93881.0,0.0906]
[1767705715917,0.010655,93885.0,93881.0,0.0906]
[1767705716115,0.010655,93883.0,93878.0,0.0906]
[1767705716314,0.01259091,93892.0,93878.0,0.0906]
[1767705716922,0.01259091,93892.0,93877.0,0.0906]
[1767705717824,0.010655,93882.0,93877.0,0.0906]
[1767705718124,0.010655,93883.0,93877.0,0.0906]
[1767705718312,0.01259091,93892.0,93877.0,0.0906]
[1767705719219,0.010655,93881.0,93877.0,0.0906]
[1767705719412,0.01259091,93892.0,93876.0,0.0906]
[1767705720614,0.010655,93884.0,93876.0,0.0906]
[1767705720815,0.09817196,93893.0,93876.0,0.0906]
[1767705721126,0.010655,93884.0,93876.0,0.0906]
[1767705721314,0.09817196,93893.0,93876.0,0.0906]
[1767705722028,0.010655,93884.0,93876.0,0.0906]
[1767705722225,0.09817196,93893.0,93876.0,0.0906]
[1767705722526,0.010655,93880.0,93876.0,0.0906]
[1767705722920,0.010654,93891.0,93876.0,0.0906]
[1767705723120,0.010655,93880.0,93876.0,0.0906]
[1767705723327,0.010654,93890.0,93876.0,0.0906]
[1767705723515,0.010654,93890.0,93874.0,0.01835524]
[1767705723716,0.010655,93881.0,93875.0,0.0906]
[1767705723917,0.010655,93881.0,93876.0,0.0906]
[1767705724223,0.010654,93890.0,93876.0,0.0906]
[1767705724725,0.010654,93890.0,93874.0,0.01835524]
[1767705724934,0.010654,93890.0,93875.0,0.0906]
[1767705725623,0.010655,93879.0,93875.0,0.0906]
[1767705725927,0.010654,93889.0,93874.0,0.11395559]
[1767705726323,0.010655,93879.0,93875.0,0.0906]
[1767705726526,0.010654,93889.0,93875.0,0.0906]
[1767705727128,0.010655,93882.0,93875.0,0.0906]
[1767705727426,0.010655,93885.0,93875.0,0.0906]
[1767705727818,0.010655,93884.0,93875.0,0.0906]
[1767705728220,0.010654,93886.0,93875.0,0.0906]
[1767705728625,0.010655,93885.0,93875.0,0.0906]
[1767705729623,0.010655,93885.0,93875.0,0.10895524]
[1767705730731,0.01894846,93894.0,93875.0,0.10895524]
[1767705730926,0.010655,93881.0,93875.0,0.10895524]
[1767705731227,0.010654,93888.0,93875.0,0.10895524]
[1767705731426,0.010655,93880.0,93873.0,0.08696873]
[1767705731729,0.010656,93877.0,93872.0,0.0906]
[1767705731927,0.010656,93869.0,93859.0,0.09560035]
[1767705732232,0.010657,93867.0,93861.0,0.0906]
[1767705732439,0.01894846,93876.0,93859.0,0.0906]
[1767705732631,0.010655,93879.0,93859.0,0.0906]
[1767705732632,0.01894846,93878.0,93859.0,0.0906]
[1767705732830,0.010657,93868.0,93859.0,0.0906]
[1767705733032,0.010657,93866.0,93858.0,0.09560035]
[1767705733235,0.02960346,93877.0,93859.0,0.0906]
[1767705733733,0.010656,93869.0,93859.0,0.0906]
[1767705734336,0.010656,93872.0,93861.0,0.01835524]
[1767705734631,0.010656,93870.0,93861.0,0.01835524]
[1767705734835,0.010657,93865.0,93860.0,0.09560035]
[1767705735134,0.010656,93877.0,93860.0,0.09560035]
[1767705736131,0.010656,93870.0,93860.0,0.09560035]
[1767705736334,0.010656,93868.0,93860.0,0.09560035]
[1767705737332,0.010657,93866.0,93856.0,0.0906]
[1767705737534,0.010657,93864.0,93856.0,0.0906]
[1767705737729,0.09813398,93870.0,93855.0,0.0906]
[1767705737730,0.010658,93859.0,93855.0,0.0906]
[1767705737933,0.010657,93861.0,93853.0,0.18620035]
[1767705738518,0.010657,93864.0,93853.0,0.18620035]
[1767705738725,0.010657,93864.0,93853.0,0.20455559]
[1767705739620,0.010657,93862.0,93853.0,0.20455559]
[1767705740026,0.010657,93860.0,93853.0,0.20455559]
[1767705740633,0.010657,93860.0,93853.0,0.11395559]
[1767705740835,0.010657,93860.0,93853.0,0.20455559]
[1767705741133,0.010657,93862.0,93853.0,0.20455559]
[1767705744039,0.010657,93862.0,93855.0,0.01835524]
[1767705746939,0.1107523,93875.0,93855.0,0.01835524]
[1767705747140,0.010657,93864.0,93855.0,0.01835524]
[1767705748440,0.010657,93867.0,93856.0,0.01835524]
[1767705749939,0.010657,93867.0,93855.0,0.09560035]
[1767705749940,0.010657,93864.0,93855.0,0.09560035]
[1767705750144,0.010657,93863.0,93855.0,0.09560035]
[1767705751147,0.09813398,93870.0,93855.0,0.09560035]
[1767705752248,0.010657,93863.0,93855.0,0.09560035]
[1767705753046,0.010657,93863.0,93856.0,0.01920328]
[1767705758352,0.010657,93866.0,93856.0,0.01920328]
[1767705758554,0.010657,93864.0,93856.0,0.01920328]
[1767705759947,0.010657,93864.0,93855.0,0.09560035]
[1767705761552,0.010656,93872.0,93855.0,0.09560035]
[1767705761752,0.1107523,93875.0,93856.0,0.01920328]
[1767705761753,0.09813398,93870.0,93856.0,0.01920328]
[1767705761955,0.09813398,93870.0,93857.0,0.01920328]
[1767705762958,0.09813398,93870.0,93858.0,0.01920328]
[1767705763759,0.09813398,93870.0,93858.0,0.02986128]
[1767705763946,0.09813398,93870.0,93858.0,0.01920328]
[1767705764151,0.09813398,93870.0,93858.0,0.02986128]
[1767705764449,0.09813398,93870.0,93858.0,0.01920328]
[1767705764759,0.10878998,93870.0,93856.0,0.09482135]
[1767705764958,0.010656,93869.0,93856.0,0.09482135]
[1767705765160,0.010657,93867.0,93856.0,0.09482135]
[1767705767258,0.09813398,93870.0,93856.0,0.09482135]
[1767705767259,0.09813398,93870.0,93856.0,0.10547935]
[1767705767461,0.10878998,93870.0,93856.0,0.10547935]
[1767705767662,0.10878998,93870.0,93852.0,0.10980328]
[1767705767663,0.010657,93865.0,93852.0,0.10980328]
[1767705767861,0.010657,93865.0,93852.0,0.0906]
[1767705769361,0.010657,93864.0,93852.0,0.0906]
[1767705770863,0.09813398,93870.0,93852.0,0.0906]
[1767705770864,0.010658,93859.0,93852.0,0.0906]
[1767705771963,0.010657,93862.0,93852.0,0.0906]
[1767705772354,0.010657,93860.0,93852.0,0.0906]
[1767705772559,0.02030766,93869.0,93852.0,0.0906]
[1767705772757,0.010657,93862.0,93852.0,0.0906]
[1767705773458,0.010657,93862.0,93852.0,0.10980328]
[1767705773967,0.010657,93865.0,93852.0,0.10980328]
[1767705774167,0.010657,93863.0,93852.0,0.01920328]
[1767705774556,0.010657,93861.0,93852.0,0.01920328]
[1767705774751,0.010657,93861.0,93850.0,0.18542135]
[1767705775057,0.010657,93860.0,93850.0,0.18542135]
[1767705775767,0.010657,93860.0,93850.0,0.20462463]
[1767705776857,0.010658,93858.0,93850.0,0.20462463]
[1767705777056,0.010656,93869.0,93850.0,0.20462463]
[1767705777265,0.010657,93860.0,93850.0,0.20462463]
[1767705777857,0.010658,93859.0,93850.0,0.20462463]
[1767705778366,0.010658,93859.0,93850.0,0.11402463]
[1767705778666,0.010658,93857.0,93850.0,0.20462463]
[1767705778866,0.010657,93867.0,93850.0,0.20462463]
[1767705779061,0.010658,93857.0,93850.0,0.20462463]
[1767705779261,0.010657,93866.0,93850.0,0.20462463]
[1767705780168,0.010658,93856.0,93850.0,0.20462463]
[1767705780467,0.010657,93865.0,93850.0,0.20462463]
[1767705780864,0.010657,93868.0,93850.0,0.20462463]
[1767705781369,0.010657,93868.0,93851.0,0.01924548]
[1767705782171,0.010657,93860.0,93851.0,0.01924548]
[1767705782766,0.010657,93860.0,93847.0,0.010659]
[1767705782767,0.01925758,93864.0,93847.0,0.010659]
[1767705782967,0.09813398,93860.0,93847.0,0.01924548]
[1767705783272,0.010658,93859.0,93847.0,0.02990448]
[1767705783566,0.09813398,93860.0,93847.0,0.02990448]
[1767705784064,0.10879098,93860.0,93847.0,0.02990448]
[1767705784259,0.10879098,93860.0,93847.0,0.010659]
[1767705784466,0.10879098,93860.0,93842.0,1.0132]
[1767705784467,0.010658,93859.0,93846.0,0.010659]
[1767705784865,0.09813398,93860.0,93844.0,0.02997968]
[1767705785071,0.09813398,93860.0,93851.0,0.010658]
[1767705785372,0.02991458,93865.0,93846.0,0.01924548]
[1767705785373,0.09181248,93866.0,93853.0,0.010658]
[1767705785671,0.010657,93868.0,93853.0,0.010658]
[1767705786274,0.010657,93866.0,93853.0,0.010658]
[1767705787873,0.010657,93867.0,93856.0,0.01924548]
[1767705788072,0.010656,93868.0,93856.0,0.01924548]
[1767705788260,0.010656,93868.0,93855.0,0.10475884]
[1767705788859,0.101256,93869.0,93857.0,0.010658]
[1767705790067,0.010657,93868.0,93854.0,0.010658]
[1767705791573,0.010657,93867.0,93854.0,0.010658]
[1767705792578,0.0906,93869.0,93857.0,0.010658]
[1767705792772,0.101256,93869.0,93855.0,0.010658]
[1767705794578,0.0906,93869.0,93851.0,0.01924548]
[1767705794778,0.0906,93869.0,93857.0,0.010658]
[1767705795279,0.010656,93868.0,93853.0,0.010658]
[1767705795480,0.0906,93869.0,93851.0,0.02990348]
[1767705797184,0.010657,93866.0,93851.0,0.02990348]
[1767705797385,0.0906,93869.0,93856.0,0.010658]
[1767705798085,0.0906,93869.0,93857.0,0.010658]
[1767705798381,0.0906,93869.0,93858.0,0.01924548]
[1767705799274,0.0906,93869.0,93859.0,0.010657]
[1767705801682,0.0906,93869.0,93857.0,0.09410084]
[1767705802485,0.010655,93880.0,93864.0,0.01924548]
[1767705803177,0.010655,93880.0,93863.0,0.09410084]
[1767705803981,0.010655,93878.0,93863.0,0.09410084]
[1767705804286,0.010656,93876.0,93861.0,0.01924548]
[1767705804479,0.010656,93876.0,93858.0,0.010658]
[1767705804676,0.010656,93876.0,93858.0,0.02990348]
[1767705805282,0.02991258,93880.0,93860.0,0.01924548]
[1767705805484,0.02991258,93880.0,93861.0,0.01924548]
[1767705805787,0.010655,93880.0,93862.0,0.01924548]
[1767705806286,0.010655,93880.0,93863.0,0.010657]
[1767705806682,0.010655,93880.0,93862.0,0.01924548]
[1767705807389,0.09181248,93882.0,93862.0,0.01924548]
[1767705807390,0.010655,93878.0,93862.0,0.01924548]
[1767705808088,0.010655,93878.0,93861.0,0.09410084]
[1767705808388,0.010655,93878.0,93861.0,0.11334632]
[1767705809692,0.010655,93878.0,93862.0,0.010657]
[1767705815589,0.010655,93881.0,93864.0,0.01733471]
[1767705815791,0.010655,93879.0,93868.0,0.01733471]
[1767705815982,0.010655,93879.0,93867.0,0.0987252]
[1767705816183,0.010655,93881.0,93867.0,0.0987252]
[1767705816578,0.02797821,93881.0,93867.0,0.0987252]
[1767705816782,0.02797821,93881.0,93865.0,0.010657]
[1767705816983,0.010655,93881.0,93865.0,0.010657]
[1767705818394,0.010655,93879.0,93865.0,0.010657]
[1767705818695,0.01732321,93881.0,93859.0,0.01733471]
[1767705818894,0.01732321,93880.0,93859.0,0.01733471]
[1767705819595,0.01732321,93880.0,93859.0,0.11605991]
[1767705819783,0.01732321,93880.0,93860.0,0.01733471]
[1767705820397,0.010656,93877.0,93861.0,0.010657]
[1767705821193,0.010656,93877.0,93862.0,0.11605991]
[1767705821398,0.010656,93877.0,93863.0,0.02799171]
[1767705821698,0.010655,93881.0,93865.0,0.02799171]
[1767705821898,0.010655,93881.0,93868.0,0.01733471]
[1767705822098,0.010655,93881.0,93867.0,0.0987252]
[1767705822893,0.010655,93881.0,93865.0,0.02799171]
[1767705824302,0.010655,93881.0,93867.0,0.010657]
[1767705824903,0.010655,93881.0,93865.0,0.01733471]
[1767705827405,0.010655,93880.0,93865.0,0.01733471]
[1767705827702,0.010655,93880.0,93867.0,0.11605991]
[1767705827905,0.101255,93883.0,93868.0,0.01733471]
[1767705828094,0.0906,93883.0,93869.0,0.01733471]
[1767705828290,0.010654,93890.0,93875.0,0.01733471]
[1767705828499,0.0906,93889.0,93876.0,0.01733471]
[1767705828698,0.0906,93889.0,93875.0,0.0987252]
[1767705829099,0.010654,93888.0,93875.0,0.0987252]
[1767705830022,0.0906,93889.0,93862.0,1.5]
[1767705830023,0.0906,93889.0,93877.0,0.01733471]
[1767705830223,0.0906,93889.0,93879.0,0.11605991]
[1767705830418,0.010654,93894.0,93879.0,0.11605991]
[1767705831729,0.0906,93895.0,93881.0,0.01733471]
[1767705832918,0.0906,93895.0,93880.0,0.010655]
[1767705833123,0.010654,93894.0,93877.0,0.02798971]
[1767705833323,0.010654,93894.0,93878.0,0.01733471]
[1767705833924,0.0906,93895.0,93879.0,0.010655]
[1767705834119,0.0906,93895.0,93882.0,0.01733471]
[1767705835526,0.101253,93895.0,93882.0,0.01733471]
[1767705835832,0.0906,93895.0,93883.0,0.01733471]
[1767705836730,0.0906,93895.0,93882.0,0.0987252]
[1767705837723,0.010654,93894.0,93882.0,0.0987252]
[1767705840723,0.0906,93895.0,93885.0,0.01515738]
[1767705840929,0.0906,93895.0,93887.0,0.01515738]
[1767705841125,0.010654,93893.0,93883.0,0.01515738]
[1767705841825,0.010653,93896.0,93884.0,0.01556171]
[1767705842024,0.010653,93896.0,93886.0,0.01556171]
[1767705842633,0.00212996,93899.0,93886.0,0.01556171]
[1767705842835,0.0906,93901.0,93887.0,0.01556171]
[1767705843331,0.010653,93900.0,93887.0,0.01556171]
[1767705843721,0.010652,93912.0,93892.0,0.01556171]
[1767705843722,0.0906,93911.0,93892.0,0.01556171]
[1767705844031,0.0906,93911.0,93893.0,0.01556171]
[1767705844819,0.10568122,93911.0,93893.0,0.01556171]
[1767705845026,0.010653,93900.0,93886.0,0.18782547]
[1767705845332,0.010652,93904.0,93889.0,0.11278718]
[1767705845523,0.010652,93904.0,93890.0,0.01556171]
[1767705845721,0.010653,93902.0,93890.0,0.01556171]
[1767705846320,0.010653,93902.0,93891.0,0.11278718]
[1767705846629,0.010653,93902.0,93891.0,0.09722547]
[1767705849525,0.010653,93902.0,93891.0,0.11278718]
[1767705849927,0.20968653,93910.0,93891.0,0.11278718]
[1767705850128,0.01508122,93909.0,93891.0,0.09722547]
[1767705850737,0.01508122,93909.0,93891.0,0.11278718]
[1767705851031,0.09651269,93910.0,93891.0,0.11278718]
[1767705851625,0.010653,93901.0,93891.0,0.11278718]
[1767705853230,0.11159391,93910.0,93891.0,0.11278718]
[1767705853431,0.0906,93911.0,93892.0,0.01551665]
[1767705853825,0.010653,93902.0,93893.0,0.01536212]
[1767705854026,0.010653,93902.0,93892.0,0.09722547]
[1767705855232,0.010652,93905.0,93892.0,0.09722547]
[1767705855434,0.010653,93902.0,93892.0,0.09722547]
[1767705856535,0.010652,93905.0,93892.0,0.09722547]
[1767705856927,0.010653,93901.0,93892.0,0.09722547]
[1767705858031,0.010652,93904.0,93892.0,0.09722547]
[1767705858639,0.010653,93903.0,93892.0,0.09722547]
[1767705859434,0.010653,93902.0,93892.0,0.09722547]
[1767705859640,0.010652,93905.0,93890.0,0.11271785]
[1767705859839,0.010652,93905.0,93891.0,0.01462523]
[1767705860233,0.010652,93905.0,93892.0,0.1118507]
[1767705860433,0.010652,93907.0,93893.0,0.01462523]
[1767705862147,0.010652,93905.0,93893.0,0.01462523]
[1767705863233,0.010652,93905.0,93892.0,0.09722547]
[1767705863441,0.010653,93903.0,93890.0,0.09809262]
[1767705863640,0.010652,93906.0,93890.0,0.11220017]
[1767705863844,0.010652,93904.0,93890.0,0.11220017]
[1767705864343,0.01508122,93919.0,93895.0,0.09722547]
[1767705864544,0.01508122,93919.0,93890.0,0.09809262]
[1767705864545,0.11629222,93918.0,93900.0,0.09809262]
[1767705865051,0.010652,93909.0,93900.0,0.09809262]
[1767705865247,0.01508122,93909.0,93891.0,0.09722547]
[1767705865448,0.01508122,93907.0,93886.0,0.10420783]
[1767705865645,0.010653,93900.0,93886.0,0.01360783]
[1767705865948,0.010654,93892.0,93881.0,0.01384172]
[1767705866138,0.010653,93902.0,93882.0,0.01384172]
[1767705866334,0.09809262,93900.0,93886.0,0.15944455]
[1767705866540,0.02573422,93902.0,93883.0,0.15944455]
[1767705866738,0.01508122,93902.0,93882.0,0.01384172]
[1767705866956,0.010653,93896.0,93885.0,0.15944455]
[1767705867147,0.010654,93894.0,93883.0,0.15944455]
[1767705867451,0.010654,93894.0,93882.0,0.01384172]
[1767705867648,0.010654,93894.0,93883.0,0.15875011]
[1767705868045,0.010654,93894.0,93883.0,0.17260476]
[1767705869355,0.010654,93892.0,93877.0,0.010655]
[1767705869653,0.010654,93892.0,93880.0,0.09809262]
[1767705870450,0.010654,93890.0,93880.0,0.09809262]
[1767705870656,0.010655,93881.0,93871.0,0.09722547]
[1767705870953,0.010655,93882.0,93867.0,0.01359389]
[1767705871144,0.010655,93877.0,93866.0,0.09722547]
[1767705871344,0.010655,93877.0,93863.0,0.01344576]
[1767705871745,0.09809262,93880.0,93863.0,0.01344576]
[1767705872050,0.09809262,93880.0,93861.0,0.09582217]
[1767705873154,0.010656,93877.0,93862.0,0.010657]
[1767705873352,0.09809262,93880.0,93862.0,0.010657]
[1767705873550,0.010655,93878.0,93862.0,0.010657]
[1767705873749,0.010655,93878.0,93863.0,0.13413449]
[1767705873945,0.010656,93876.0,93863.0,0.13413449]
[1767705874557,0.010656,93876.0,93862.0,0.13413449]
[1767705874857,0.09809262,93880.0,93865.0,0.010657]
[1767705875244,0.010655,93879.0,93864.0,0.08582458]
[1767705875448,0.010655,93877.0,93864.0,0.08582458]
[1767705876352,0.010656,93875.0,93864.0,0.08582458]
[1767705876650,0.09809262,93880.0,93864.0,0.08582458]
[1767705876651,0.010656,93876.0,93864.0,0.08582458]
[1767705876856,0.12347269,93880.0,93864.0,0.09648158]
[1767705877362,0.10874762,93880.0,93866.0,0.010657]
[1767705878256,0.010655,93880.0,93866.0,0.010657]
[1767705878458,0.10874762,93880.0,93866.0,0.010657]
[1767705878658,0.010655,93880.0,93866.0,0.010657]
[1767705878856,0.10874762,93880.0,93866.0,0.010657]
[1767705879263,0.10874762,93880.0,93864.0,0.08582458]
[1767705879556,0.010655,93878.0,93864.0,0.08582458]
[1767705881961,0.010655,93878.0,93865.0,0.010657]
[1767705882161,0.02538007,93878.0,93865.0,0.010657]
[1767705882461,0.01472507,93878.0,93864.0,0.08582458]
[1767705882658,0.01472507,93878.0,93865.0,0.010657]
[1767705882859,0.010655,93879.0,93865.0,0.010657]
[1767705884262,0.010655,93877.0,93864.0,0.08582458]
[1767705884763,0.010655,93877.0,93864.0,0.09648158]
[1767705885063,0.09137942,93879.0,93866.0,0.010657]
[1767705886571,0.10874762,93880.0,93864.0,0.08582458]
[1767705886863,0.09809262,93880.0,93868.0,0.010656]
[1767705888661,0.010655,93882.0,93868.0,0.010656]
[1767705888861,0.10528507,93884.0,93868.0,0.010656]
[1767705889165,0.09809262,93880.0,93868.0,0.010656]
[1767705890063,0.10528507,93884.0,93868.0,0.010656]
[1767705890266,0.09809262,93880.0,93868.0,0.010656]
[1767705890664,0.09809262,93880.0,93869.0,0.01278664]
[1767705893265,0.09809262,93880.0,93871.0,0.010656]
[1767705894066,0.09809262,93880.0,93864.0,0.08582458]
[1767705894256,0.09809262,93880.0,93872.0,0.010656]
[1767705894657,0.09809262,93880.0,93864.0,0.010657]
[1767705896964,0.11192139,93880.0,93864.0,0.09740392]
[1767705897165,0.11192139,93880.0,93872.0,0.010656]
[1767705898068,0.11192139,93880.0,93864.0,0.010657]
[1767705898767,0.11192139,93880.0,93869.0,0.010656]
[1767705898964,0.11192139,93880.0,93861.0,0.13413449]
[1767705899171,0.01382877,93879.0,93861.0,0.21757666]
[1767705899369,0.01382877,93879.0,93865.0,0.010657]
[1767705899667,0.01382877,93866.0,93856.0,0.010658]
[1767705899867,0.01382877,93866.0,93843.0,0.11245906]
[1767705900070,0.01382877,93866.0,93854.0,0.15954778]
[1767705900364,0.01382877,93866.0,93843.0,0.11245906]
[1767705900365,0.01382877,93866.0,93849.0,0.15954778]
[1767705900571,0.09809262,93860.0,93855.0,0.16034775]
[1767705900766,0.09809262,93860.0,93848.0,0.010659]
[1767705900767,0.01382877,93860.0,93848.0,0.010659]